fUSD/lending_fUSD_20250611
["ID","MTS","AMOUNT","RATE_DAILY","PERIOD"]
[365393011,1749646239421,-1827.4050726,0.000199,2]
[365393013,1749646239432,-200.35279007,0.000199,2]
[365393015,1749646239441,-160.36333859,0.000199,2]
[365393017,1749646239451,-3900.61708925,0.000199,2]
[365393019,1749646239459,-324.27017095,0.000199,2]
[365393021,1749646239468,-253.11997513,0.000199,2]
[365393023,1749646239477,-246.05198787,0.000199,2]
[365393025,1749646239487,-1313.65,0.00019908,2]
[365393027,1749646239496,-385.58283731,0.00019918,2]
[365393029,1749646239506,-169.38,0.00019924,2]
[365393031,1749646239515,-524.89472601,0.00019926,2]
[365393033,1749646239525,-500.0,0.00019973,2]
[365393035,1749646239535,-289.96409942,0.00019973,2]
[365393036,1749646239544,-315.01987777,0.00019973,2]
[365393037,1749646239553,-500.0,0.00019973,2]
[365393038,1749646239562,-500.0,0.00019973,2]
[365393039,1749646239571,-500.0,0.00019973,2]
[365393040,1749646239580,-500.0,0.00019973,2]
[365393041,1749646239590,-500.0,0.00019973,2]
[365393042,1749646239600,-500.0,0.00019973,2]
[365393043,1749646239610,-385.58283731,0.00019975,2]
[365393044,1749646239619,-385.58283731,0.00019986,2]
[365393045,1749646239628,-150.28,0.0001999,2]
[365393046,1749646239637,-150.0,0.0001999,2]
[365393047,1749646239646,-150.0,0.0001999,2]
[365393049,1749646239656,-152.47083393,0.0001999,2]
[365393051,1749646239665,-150.0,0.0001999,2]
[365393053,1749646239676,-150.0,0.0001999,2]
[365393055,1749646239685,-150.0,0.0001999,2]
[365393057,1749646239695,-150.0,0.0001999,2]
[365393059,1749646239704,-150.0,0.0001999,2]
[365393061,1749646239713,-150.0,0.0001999,2]
[365393063,1749646239722,-150.0,0.0001999,2]
[365393065,1749646239732,-150.0,0.0001999,2]
[365393067,1749646239741,-500.0,0.0001999,2]
[365393069,1749646239750,-150.0,0.0001999,2]
[365393071,1749646239759,-200.0,0.0001999,2]
[365393073,1749646239768,-150.28,0.0001999,2]
[365393075,1749646239778,-150.28,0.0001999,2]
[365393078,1749646239787,-150.28,0.0001999,2]
[365393080,1749646239797,-150.28,0.0001999,2]
[365393082,1749646239807,-150.28,0.0001999,2]
[365393084,1749646239817,-150.28,0.0001999,2]
[365393086,1749646239826,-150.28,0.0001999,2]
[365393088,1749646239836,-150.28,0.0001999,2]
[365393090,1749646239846,-150.28,0.0001999,2]
[365393092,1749646239856,-150.28,0.0001999,2]
[365393094,1749646239865,-150.28,0.0001999,2]
[365393096,1749646239874,-150.28,0.0001999,2]
[365393098,1749646239883,-150.28,0.0001999,2]
[365393100,1749646239892,-150.28,0.0001999,2]
[365393102,1749646239903,-150.28,0.0001999,2]
[365393104,1749646239913,-150.28,0.0001999,2]
[365393106,1749646239924,-150.28,0.0001999,2]
[365393108,1749646239933,-150.28,0.0001999,2]
[365393110,1749646239943,-150.28,0.0001999,2]
[365393112,1749646239952,-150.28,0.0001999,2]
[365393114,1749646239962,-150.28,0.0001999,2]
[365393116,1749646239971,-150.28,0.0001999,2]
[365393118,1749646239980,-150.28,0.0001999,2]
[365393120,1749646239990,-150.28,0.0001999,2]
[365393122,1749646239999,-150.28,0.0001999,2]
[365393124,1749646240008,-150.28,0.0001999,2]
[365393126,1749646240018,-150.28,0.0001999,2]
[365393128,1749646240027,-150.28,0.0001999,2]
[365393130,1749646240038,-150.28,0.0001999,2]
[365393132,1749646240047,-150.28,0.0001999,2]
[365393134,1749646240057,-150.28,0.0001999,2]
[365393136,1749646240066,-150.28,0.0001999,2]
[365393138,1749646240076,-257.01947636,0.00019999,2]
[365393140,1749646240085,-500.0,0.00019999,2]
[365393142,1749646240095,-500.50733253,0.00019999,2]
[365393144,1749646240104,-500.0,0.00019999,2]
[365393146,1749646240114,-500.0,0.00019999,2]
[365393148,1749646240124,-669.08307195,0.00019999,2]
[365393150,1749646240133,-300.0,0.00019999,2]
[365393152,1749646240143,-1000.0,0.00019999,2]
[365393154,1749646240152,-1000.0,0.00019999,2]
[365393157,1749646240162,-155.0,0.00019999,2]
[365393159,1749646240175,-1000.0,0.00019999,2]
[365393162,1749646240186,-7239.41784005,0.00019999,2]
[365393164,1749646240196,-1000.0,0.00019999,2]
[365393166,1749646240206,-52586.54902161,0.00019999,2]
[365393168,1749646240216,-150.0,0.00019999,2]
[365393170,1749646240226,-5000.0,0.00019999,2]
[365393172,1749646240235,-3294.37142383,0.00019999,2]
[365393174,1749646240245,-500.0,0.00019999,2]
[365393176,1749646240256,-785.37766332,0.0002,2]
[365393178,1749646240266,-640990.51278576,0.0002,3]
[365393180,1749646240276,-21764.76207436,0.0002,3]
[365393182,1749646240286,-698543.92117812,0.0002,2]
[365393184,1749646240296,-42462.55693742,0.0002,2]
[365393186,1749646240306,-8283.1538875,0.0002,10]
[365393188,1749646240316,-4292.1593042,0.0002,2]
[365393190,1749646240326,-128605.32066629,0.0002,4]
[365393192,1749646240335,-209.4,0.0002,2]
[365393194,1749646240345,-209.4,0.0002,2]
[365393196,1749646240354,-646261.92095824,0.0002,2]
[365393198,1749646240364,-404593.12495872,0.0002,2]
[365393200,1749646240373,-574603.21548911,0.0002,2]
[365393202,1749646240387,-16341.30097314,0.0002,2]
[365393211,1749646240465,-1446.67311682,0.0002,2]
[365393213,1749646240476,-1203.72375008,0.0002,2]
[365393216,1749646240488,-1358.1651446,0.0002,2]
[365393218,1749646240500,-2217.58772722,0.0002,2]
[365393220,1749646240511,-55401.85,0.0002,2]
[365393222,1749646240522,-1405.7302248,0.0002,2]
[365393224,1749646240533,-1615.5,0.0002,2]
[365393227,1749646240549,-6905.27122744,0.0002,2]
[365393249,1749646240761,-2486.3438,0.00019899,2]
[365393251,1749646240771,-205669.42096106,0.0002,2]
[365393253,1749646240780,-6952.75261947,0.0002,2]
[365393255,1749646240790,-2003.17387184,0.0002,2]
[365393257,1749646240799,-13725.32,0.0002,10]
[365393259,1749646240808,-150.0,0.0002,2]
[365393261,1749646240817,-20000.0,0.0002,2]
[365393263,1749646240828,-369022.46719753,0.0002,2]
[365393337,1749646241540,202.0,0.00016132,2]
[365393427,1749646243144,-202.0,0.00017228,3]
[365393428,1749646243154,-202.0,0.00018325,4]
[365393429,1749646243164,-202.0,0.00019422,6]
[365393430,1749646243176,-88596.0524579,0.0002,2]
[365393431,1749646243200,-1351.79029731,0.0002,2]
[365393432,1749646243211,-2410.1,0.0002,2]
[365393433,1749646243311,-1357777.96064338,0.0002,2]
[365393434,1749646243321,-20796.21343323,0.0002,4]
[365393435,1749646243330,-36475.30338408,0.0002,14]
[365393436,1749646243339,-230000.52253983,0.0002,2]
[365393437,1749646243351,-1915.05473287,0.0002,2]
[365393438,1749646243362,-586.71462922,0.0002,2]
[365393440,1749646243473,-11198.49739332,0.0002,2]
[365393444,1749646243485,-14003.7758035,0.0002,2]
[365393519,1749646245946,-305.75,0.0001647,2]
[365393520,1749646245955,-10675.95845246,0.0002,2]
[365393521,1749646245994,-1291.06769184,0.0002,2]
[365393522,1749646246006,-1632.66220302,0.0002,2]
[365393523,1749646246021,-4185.98298866,0.0002,2]
[365393524,1749646246032,-2741.75,0.0002,2]
[365393525,1749646246043,-1543.72886736,0.0002,2]
[365393526,1749646246055,-797.9807912,0.0002,2]
[365393527,1749646246074,-455.0,0.0001827,2]
[365393528,1749646246086,-45.0,0.0001827,2]
[365393529,1749646246096,-665.81898075,0.0002,2]
[365393530,1749646246178,-500.0,0.0001827,2]
[365393531,1749646246188,-249.92838908,0.0001827,2]
[365393532,1749646246199,-213.97250466,0.0002,2]
[365393533,1749646246210,-21940.0,0.0002,2]
[365393534,1749646246232,-506.25628285,0.0002,2]
[365393536,1749646246343,-2687.40331699,0.0002,2]
[365393537,1749646253555,105.15373683,0.00013699,2]
[365393538,1749646253577,132.40626317,0.00013699,2]
[365393544,1749646513713,20000.0,0.0002,30]
[365393545,1749646601691,202.0,0.00015132,2]
[365393546,1749646684305,27229.10528084,0.00024658,120]
[365393547,1749646742594,1000.0,0.00024,120]
[365393548,1749646743790,1000.0,0.00024,120]
[365393551,1749646825595,196.67,0.00014989,2]
[365393552,1749646937596,200.0,0.0002,60]
[365393553,1749646938036,200.0,0.0002,60]
[365393554,1749646938475,200.0,0.0002,60]
[365393555,1749646938903,200.0,0.0002,60]
[365393556,1749646939603,225.0,0.0002,60]
[365393557,1749646961513,202.0,0.00015312,2]
[365393558,1749647111485,202.0,0.00015312,2]
[365393559,1749647226107,-500.0,0.00016164,2]
[365393560,1749647226129,-202.0,0.0001652,3]
[365393561,1749647226151,-1246.45,0.00016649,2]
[365393562,1749647226172,-236.29524294,0.00016775,2]
[365393563,1749647226193,-304.12,0.00016875,2]
[365393564,1749647226218,-202.0,0.00017728,5]
[365393565,1749647226240,-300.0,0.0001778,2]
[365393566,1749647226262,-600.0,0.0001778,4]
[365393567,1749647226283,-161.0,0.00018412,2]
[365393568,1749647226304,-1000.0,0.00018566,2]
[365393569,1749647226326,-425.05,0.00018575,2]
[365393570,1749647226348,-250.0,0.00018586,2]
[365393571,1749647226371,-527.0,0.00018611,2]
[365393572,1749647226397,-300.0,0.00018611,2]
[365393573,1749647226424,-262.64959791,0.00018611,2]
[365393574,1749647238131,-152.481,0.00016548,2]
[365393575,1749647238155,-37.35040209,0.00018611,2]
[365393576,1749647238178,-283.42,0.00018612,2]
[365393577,1749647238202,-261.24332471,0.00018612,2]
[365393578,1749647254307,-500.0,0.00016164,2]
[365393579,1749647254329,-303.3,0.00016471,2]
[365393580,1749647254351,-302.0,0.00018612,2]
[365393581,1749647254374,-106.6054146,0.00018612,2]
[365393582,1749647286678,8367.0857783,0.00024658,120]
[365393584,1749647339559,-202.0,0.00017936,2]
[365393585,1749647339582,-4559.82126069,0.00018612,2]
[365393586,1749647339605,-300.0,0.00018612,2]
[365393587,1749647339626,-303.87,0.00018612,2]
[365393588,1749647339648,-305.68,0.00018612,2]
[365393589,1749647339669,-305.1,0.00018612,2]
[365393590,1749647339692,-501.75,0.00018612,2]
[365393591,1749647339713,-300.62,0.00018612,2]
[365393592,1749647339735,-490.56,0.00018612,2]
[365393593,1749647339757,-509.98,0.00018612,2]
[365393594,1749647339779,-504.71,0.00018612,2]
[365393595,1749647339802,-300.09,0.00018612,2]
[365393596,1749647339826,-509.7,0.00018612,2]
[365393597,1749647339847,-1003.14,0.00018662,2]
[365393598,1749647339868,-666.0,0.00018675,2]
[365393599,1749647339890,-300.0,0.00018712,2]
[365393600,1749647339913,-150.0,0.00018715,7]
[365393601,1749647339934,-167.51,0.00018755,2]
[365393602,1749647339956,-500.0,0.00018904,2]
[365393603,1749647339979,-1246.45,0.00018912,2]
[365393604,1749647340000,-200.0,0.00018922,2]
[365393605,1749647340022,-820.41,0.00018948,2]
[365393606,1749647340044,-207.4,0.00018999,2]
[365393607,1749647340069,-808.20873931,0.00019,19]
[365393613,1749647400777,162.0,0.00016001,2]
[365393614,1749647430316,536.83407776,0.00016164,2]
[365393619,1749647432354,-305.05,0.00018152,2]
[365393620,1749647432364,-301.55,0.00018152,2]
[365393621,1749647432375,-508.17,0.00018152,2]
[365393622,1749647432384,-498.5,0.00018153,2]
[365393623,1749647432393,-502.14,0.00018153,2]
[365393624,1749647432402,-498.72,0.00018153,2]
[365393625,1749647432412,-9.5295717,0.00018153,2]
[365393626,1749647432423,-292.6804283,0.00018153,2]
[365393627,1749647432433,-300.27,0.00018154,2]
[365393628,1749647432442,-506.61,0.00018156,2]
[365393629,1749647432452,-500.43,0.00018159,2]
[365393630,1749647432461,-495.34,0.00018159,2]
[365393631,1749647432470,-300.71,0.00018166,2]
[365393632,1749647432479,-493.68,0.00018196,2]
[365393633,1749647432493,-504.46,0.00018196,2]
[365393634,1749647432502,-303.14,0.00018241,2]
[365393635,1749647432511,-503.53,0.00018421,2]
[365393636,1749647432520,-509.51,0.00018421,2]
[365393637,1749647432530,-508.86,0.00018421,2]
[365393638,1749647432539,-157.0,0.00018583,2]
[365393639,1749647432547,-507.69,0.00018584,2]
[365393640,1749647432556,-490.56,0.00018584,2]
[365393641,1749647432566,-492.37,0.00018972,2]
[365393642,1749647432575,-500.29,0.00018972,2]
[365393643,1749647432585,-191.79126069,0.00019,19]
[365393644,1749647432594,-354.55,0.00019,2]
[365393645,1749647432603,-300.0,0.00019,2]
[365393646,1749647432612,-170.71,0.00019,2]
[365393647,1749647432622,-1415.43,0.00019008,2]
[365393648,1749647432631,-461.31,0.00019146,2]
[365393649,1749647432641,-807.66,0.00019146,2]
[365393650,1749647432650,-202.0,0.00019173,3]
[365393651,1749647432659,-151.0,0.00019522,2]
[365393652,1749647432669,-154.01,0.00019533,2]
[365393653,1749647432678,-12500.0,0.00019534,2]
[365393654,1749647432688,-170.56,0.00019733,2]
[365393655,1749647432697,-170.71,0.000198,2]
[365393656,1749647432706,-461.18,0.000198,2]
[365393657,1749647432715,-186.55533544,0.000198,2]
[365393658,1749647432918,-167.99466456,0.000198,2]
[365393659,1749647432927,-796.76,0.000198,2]
[365393660,1749647432936,-168.542,0.00019841,2]
[365393661,1749647432945,-500.0,0.00019879,2]
[365393662,1749647432954,-500.0,0.00019879,2]
[365393663,1749647432962,-500.0,0.00019879,2]
[365393664,1749647432972,-500.0,0.00019879,2]
[365393665,1749647432981,-1648.35826466,0.0001988,2]
[365393666,1749647432990,-7788.67745587,0.0001988,2]
[365393667,1749647433002,-1521.63343658,0.0001988,2]
[365393668,1749647433014,-4562.48569138,0.0001988,2]
[365393669,1749647433025,-612.375005,0.0001988,2]
[365393677,1749647438719,-506.46,0.00018152,2]
[365393679,1749647438728,-9870.6213877,0.0001988,2]
[365393681,1749647438740,-15172.93475095,0.0001988,2]
[365393683,1749647438751,-317.23425955,0.0001988,2]
[365393684,1749647438762,-812.02946079,0.0001988,2]
[365393685,1749647438773,-3109.49128818,0.0001988,2]
[365393687,1749647438782,-240.92752065,0.0001989,2]
[365393689,1749647438791,-2486.3438,0.0001989,2]
[365393691,1749647438801,-240.92752058,0.00019891,2]
[365393693,1749647438810,-240.92752058,0.00019891,2]
[365393694,1749647438820,-240.92752058,0.00019892,2]
[365393695,1749647438829,-240.92752058,0.00019892,2]
[365393697,1749647438838,-240.92752058,0.00019893,2]
[365393698,1749647438848,-240.92752058,0.00019893,2]
[365393699,1749647438858,-240.92752058,0.00019894,2]
[365393700,1749647438868,-240.92752058,0.00019894,2]
[365393701,1749647438879,-240.92752058,0.00019895,2]
[365393702,1749647438888,-240.92752058,0.00019895,2]
[365393703,1749647438897,-240.92752058,0.00019896,2]
[365393704,1749647438906,-240.92752058,0.00019896,2]
[365393705,1749647438915,-240.92752058,0.00019897,2]
[365393706,1749647438924,-1129.34778742,0.00019897,2]
[365393707,1749647438934,-240.92752058,0.00019897,2]
[365393708,1749647438944,-240.92752058,0.00019898,2]
[365393709,1749647438954,-240.92752058,0.00019898,2]
[365393710,1749647438963,-240.92752058,0.00019899,2]
[365393711,1749647438972,-240.92752058,0.00019899,2]
[365393712,1749647438981,-1000.0,0.000199,2]
[365393713,1749647438993,-454.5708,0.000199,2]
[365393714,1749647439010,-6000.0,0.000199,4]
[365393715,1749647439024,-1000.0,0.000199,2]
[365393716,1749647439040,-240.92752058,0.000199,2]
[365393717,1749647439057,-301.98,0.00019912,2]
[365393718,1749647439072,-500.0,0.00019973,2]
[365393719,1749647439085,-500.0,0.00019973,2]
[365393720,1749647439101,-500.0,0.00019973,2]
[365393721,1749647439117,-176.18,0.0001998,2]
[365393722,1749647439135,-176.18,0.0001998,2]
[365393723,1749647439150,-176.18,0.0001998,2]
[365393724,1749647439166,-52586.54902261,0.00019989,2]
[365393725,1749647439182,-257.01947636,0.00019989,2]
[365393726,1749647439199,-500.0,0.00019989,2]
[365393727,1749647439213,-500.0,0.00019989,2]
[365393728,1749647439225,-500.0,0.00019989,2]
[365393729,1749647439238,-500.50733253,0.00019989,2]
[365393730,1749647439255,-150.28,0.0001999,2]
[365393731,1749647439266,-150.28,0.0001999,2]
[365393732,1749647439284,-113625.7809651,0.0001999,2]
[365393733,1749647439297,-195801.88208177,0.0001999,2]
[365393734,1749647439310,-150.0,0.0001999,2]
[365393735,1749647439328,-152.47083393,0.0001999,2]
[365393736,1749647439343,-150.0,0.0001999,2]
[365393738,1749647439356,-150.0,0.0001999,2]
[365393740,1749647439370,-150.0,0.0001999,2]
[365393741,1749647439384,-150.0,0.0001999,2]
[365393742,1749647439398,-150.0,0.0001999,2]
[365393743,1749647439412,-150.0,0.0001999,2]
[365393744,1749647439427,-150.0,0.0001999,2]
[365393745,1749647439440,-150.0,0.0001999,2]
[365393746,1749647439454,-200.0,0.0001999,2]
[365393747,1749647439468,-500.0,0.0001999,2]
[365393748,1749647439484,-150.28,0.0001999,2]
[365393749,1749647439499,-150.28,0.0001999,2]
[365393750,1749647439512,-150.28,0.0001999,2]
[365393751,1749647439527,-150.28,0.0001999,2]
[365393752,1749647439540,-150.28,0.0001999,2]
[365393753,1749647439554,-150.28,0.0001999,2]
[365393754,1749647439569,-150.28,0.0001999,2]
[365393755,1749647439583,-150.28,0.0001999,2]
[365393756,1749647439596,-150.28,0.0001999,2]
[365393757,1749647439610,-150.28,0.0001999,2]
[365393758,1749647439624,-150.28,0.0001999,2]
[365393759,1749647439638,-150.28,0.0001999,2]
[365393760,1749647439652,-150.28,0.0001999,2]
[365393761,1749647439666,-150.28,0.0001999,2]
[365393762,1749647439680,-150.28,0.0001999,2]
[365393763,1749647439694,-150.28,0.0001999,2]
[365393764,1749647439708,-150.28,0.0001999,2]
[365393765,1749647439721,-150.28,0.0001999,2]
[365393766,1749647439735,-150.28,0.0001999,2]
[365393767,1749647439750,-150.28,0.0001999,2]
[365393768,1749647439763,-150.28,0.0001999,2]
[365393769,1749647439778,-150.28,0.0001999,2]
[365393770,1749647439792,-150.28,0.0001999,2]
[365393771,1749647439805,-150.28,0.0001999,2]
[365393772,1749647439819,-150.28,0.0001999,2]
[365393773,1749647439833,-150.28,0.0001999,2]
[365393774,1749647439847,-150.28,0.0001999,2]
[365393775,1749647439861,-150.28,0.0001999,2]
[365393776,1749647439875,-150.28,0.0001999,2]
[365393777,1749647439890,-150.28,0.0001999,2]
[365393778,1749647439904,-150.28,0.0001999,2]
[365393779,1749647439918,-304.05,0.00019999,2]
[365393780,1749647439932,-669.08307195,0.00019999,2]
[365393781,1749647439945,-300.0,0.00019999,2]
[365393782,1749647439959,-1000.0,0.00019999,2]
[365393783,1749647439973,-1000.0,0.00019999,2]
[365393784,1749647439988,-7239.41784005,0.00019999,2]
[365393785,1749647440001,-1000.0,0.00019999,2]
[365393786,1749647440015,-5000.0,0.00019999,2]
[365393787,1749647440028,-3294.37142383,0.00019999,2]
[365393788,1749647440041,-500.0,0.00019999,2]
[365393789,1749647440055,-150.0,0.00019999,2]
[365393790,1749647440069,-643639.24954728,0.0002,3]
[365393791,1749647440082,-21764.76207436,0.0002,3]
[365393792,1749647440096,-1710265.47980793,0.0002,2]
[365393793,1749647440110,-488607.17,0.0002,2]
[365393794,1749647440124,-1178.28583254,0.0002,2]
[365393795,1749647440138,-300.0,0.0002,2]
[365393796,1749647440151,-116246.34555328,0.0002,2]
[365393798,1749647440397,-497.73,0.00018152,2]
[365393799,1749647440411,-3096.94802,0.0002,2]
[365393800,1749647440506,-1688.35185699,0.0002,2]
[365393801,1749647440523,-657.96086,0.0002,2]
[365393802,1749647440564,-523068.63920963,0.0002,2]
[365393803,1749647440578,-3950.0,0.0002,2]
[365393804,1749647440588,-1257.99390588,0.0002,2]
[365393805,1749647440597,-2835.54663393,0.0002,7]
[365393806,1749647440868,-344.72115726,0.0002,2]
[365393808,1749647440897,-14189.88684673,0.0002,2]
[365393809,1749647440908,-3014.11112877,0.0002,2]
[365393810,1749647440918,-1000.0,0.0002,2]
[365393811,1749647440927,-10098.36023085,0.0002,2]
[365393812,1749647440937,-19187.81,0.0002,2]
[365393813,1749647440947,-43853.43933685,0.0002,2]
[365393814,1749647440958,-1979.66937456,0.0002,2]
[365393815,1749647440998,-22.47413324,0.0002,2]
[365393816,1749647441009,-12183.79647797,0.0002,2]
[365393817,1749647441020,-440.69671132,0.0002,2]
[365393818,1749647441031,-355.72425126,0.0002,2]
[365393827,1749647443262,-302.54,0.00018152,2]
[365393828,1749647443272,-24697.46,0.0002,2]
[365393829,1749647443373,-654.10406101,0.0002,2]
[365393830,1749647443386,-53086.54758234,0.0002,2]
[365393831,1749647443430,-6206.5033518,0.0002,2]
[365393832,1749647443596,-16649.999999,0.0002,2]
[365393833,1749647443713,-1118.3450002,0.0002,2]
[365393915,1749647446125,-290.23791831,0.00018152,2]
[365393919,1749647446235,-210.19208169,0.00018152,2]
[365393920,1749647446244,-2086.88298426,0.0002,2]
[365393921,1749647446255,-3434.12887577,0.0002,2]
[365393922,1749647446266,-420.4181448,0.0002,2]
[365393923,1749647446277,-434.45342546,0.0002,2]
[365393924,1749647446289,-2223.03474197,0.0002,2]
[365393925,1749647446305,-3447.61611172,0.0002,2]
[365393926,1749647446316,-664.22807564,0.0002,2]
[365393927,1749647446353,-635.52007315,0.0002,2]
[365393928,1749647446412,-17158.45156882,0.0002,2]
[365393929,1749647446424,-3712.08920011,0.0002,2]
[365393930,1749647446435,-11194.11041374,0.0002,2]
[365393931,1749647446446,-599.38775637,0.0002,2]
[365393932,1749647446457,-3394.92531967,0.0002,2]
[365393933,1749647446524,-2060.784648,0.0002,2]
[365393934,1749647465326,121.93447854,0.00016164,2]
[365393936,1749647504644,256.82,0.00013699,2]
[365393938,1749648011970,202.0,0.00015936,2]
[365393978,1749648266485,1855.29,0.00024658,120]
[365393979,1749648311340,612.36075837,0.000154,2]
[365393980,1749648312155,202.0,0.00015936,2]
[365393981,1749648326413,753.4743822,0.000108,2]
[365393982,1749648337056,350.42369622,9e-05,2]
[365393983,1749648356050,3897.40015776,6.94e-05,2]
[365393984,1749648356072,8655.12564801,6.94e-05,2]
[365393985,1749648363416,1344.87435199,8e-05,2]
[365393986,1749648363438,3468.80232706,8e-05,2]
[365393987,1749648367751,2495.21754715,0.0001,2]
[365393988,1749648430685,1257.12182294,0.00015,2]
[365393989,1749648453266,-378.06552146,0.00016164,2]
[365393990,1749648453289,-512.14988324,0.00016164,2]
[365393991,1749648453313,-250.0,0.00016223,2]
[365393992,1749648453337,-180.7218676,0.00016261,2]
[365393993,1749648453361,-202.0,0.00016271,2]
[365393994,1749648453385,-301.55,0.00016282,2]
[365393995,1749648453408,-1268.69,0.00016361,2]
[365393996,1749648453433,-303.26,0.00016372,2]
[365393997,1749648453459,-507.04,0.00016517,2]
[365393998,1749648453484,-500.78,0.00016517,2]
[365393999,1749648453509,-495.39,0.00016787,2]
[365394000,1749648453534,-497.01,0.00016787,2]
[365394001,1749648453559,-150.0,0.00017098,2]
[365394002,1749648453582,-150.0,0.00017274,2]
[365394003,1749648453605,-150.0,0.00017333,7]
[365394004,1749648453630,-202.0,0.00017637,3]
[365394005,1749648453652,-300.0,0.00017777,2]
[365394006,1749648453677,-674.32903107,0.00017778,2]
[365394007,1749648454141,-525.67096893,0.00017778,2]
[365394008,1749648454161,-250.0,0.0001778,2]
[365394009,1749648454183,-300.0,0.0001778,2]
[365394010,1749648454214,-206.62720842,0.000179,2]
[365394011,1749648454233,-44.2329508,0.00018,2]
[365394012,1749648476569,763.84733698,0.00015,2]
[365394013,1749648488281,512.23148,7.945e-05,2]
[365394014,1749648490693,500.0,0.0002465,120]
[365394015,1749648503009,1502.77948587,0.0001,2]
[365394016,1749648503031,375.24587805,0.0001,2]
[365394017,1749648504964,205.96031125,7.888e-05,2]
[365394023,1749648546131,-500.0,0.00016164,2]
[365394028,1749648564768,273.57,0.00013699,2]
[365394029,1749648570233,152.0,0.00015925,3]
[365394033,1749648584301,303.10456426,0.00016164,2]
[365394034,1749648596470,150.0,0.0002465,120]
[365394046,1749648631405,-303.13,0.00016273,2]
[365394048,1749648631415,-210.21384438,0.00016283,2]
[365394049,1749648631521,-289.41615562,0.00016283,2]
[365394050,1749648631531,-304.41,0.00016294,2]
[365394051,1749648631540,-301.08,0.00016294,2]
[365394052,1749648631550,-305.28,0.00016399,2]
[365394053,1749648631559,-302.7,0.00016399,2]
[365394054,1749648631568,-300.0,0.00017032,2]
[365394055,1749648631578,-150.0,0.000175,2]
[365394056,1749648631590,-300.0,0.00017647,2]
[365394057,1749648631599,-200.0,0.00017688,2]
[365394058,1749648631609,-300.0,0.0001778,2]
[365394059,1749648631618,-304.04,0.000179,2]
[365394060,1749648631628,-150.0,0.000179,2]
[365394061,1749648631638,-799.28,0.000179,2]
[365394062,1749648631649,-109.7770492,0.00018,2]
[365394063,1749648631658,-303.92,0.00018078,2]
[365394064,1749648631667,-666.0,0.00018091,2]
[365394065,1749648631678,-1139.86,0.00018112,2]
[365394066,1749648631688,-310.61,0.00018124,2]
[365394067,1749648631697,-1000.0,0.00018134,2]
[365394068,1749648631707,-1200.0,0.0001814,2]
[365394069,1749648631717,-24.28663852,0.00018141,2]
[365394070,1749648631729,-225.71336148,0.00018141,2]
[365394071,1749648631738,-300.0,0.00018151,2]
[365394072,1749648631748,-300.0,0.00018151,2]
[365394073,1749648631757,-506.2,0.00018152,2]
[365394074,1749648631766,-507.14,0.00018152,2]
[365394075,1749648631775,-300.52,0.00018152,2]
[365394076,1749648631785,-495.54,0.00018152,2]
[365394077,1749648631795,-493.49,0.00018152,2]
[365394078,1749648631804,-20689.11706684,0.00018225,2]
[365394079,1749648631828,-303.42,0.00016276,2]
[365394080,1749648631841,-3210.88293316,0.00018225,2]